fUST/lending_fUST_20260703
["ID","MTS","AMOUNT","RATE_DAILY","PERIOD"]
[426952114,1783051838000,-628.38849438,0.00026712,2]
[426952113,1783051838000,-538.56375441,0.00026712,2]
[426952117,1783051838000,-628.38849438,0.00026712,2]
[426952121,1783051838000,-628.38849438,0.00026712,2]
[426952119,1783051838000,-500.0,0.00026712,2]
[426952118,1783051838000,-628.38849438,0.00026712,2]
[426952116,1783051838000,-628.38849438,0.00026712,2]
[426952120,1783051838000,-446.65148684,0.00026712,2]
[426952123,1783051838000,-628.38849438,0.00026712,2]
[426952124,1783051838000,-628.38849438,0.00026712,2]
[426952125,1783051838000,-221.46796017,0.0002677,2]
[426952122,1783051838000,-628.38849438,0.00026712,2]
[426952126,1783051838000,-1002.39261934,0.00027,2]
[426952128,1783051838000,-221.46796013,0.00027285,2]
[426952129,1783051838000,-205.92,0.00027332,2]
[426952115,1783051838000,-628.38849438,0.00026712,2]
[426952138,1783051839000,-500.0,0.00027499,7]
[426952140,1783051839000,-315.28,0.00027499,7]
[426952133,1783051839000,-500.0,0.00027495,7]
[426952136,1783051839000,-500.0,0.00027499,7]
[426952131,1783051839000,-316.29154323,0.00027417,2]
[426952134,1783051839000,-500.0,0.00027499,7]
[426952132,1783051839000,-493.71133076,0.00027417,2]
[426952139,1783051839000,-500.0,0.00027499,7]
[426952135,1783051839000,-500.0,0.00027499,7]
[426952142,1783051839000,-157.56,0.0002772,2]
[426952137,1783051839000,-500.0,0.00027499,7]
[426952141,1783051839000,-221.46796013,0.00027543,2]
[426952144,1783051839000,-540.91104181,0.00027798,2]
[426952148,1783051839000,-312.91,0.0002789,3]
[426952146,1783051839000,-519.54564291,0.000278,2]
[426952143,1783051839000,-6996.13056549,0.0002779,2]
[426952145,1783051839000,-221.46796013,0.000278,2]
[426952147,1783051839000,-625.82,0.0002789,3]
[426952151,1783051839000,-58945.01053755,0.000279,2]
[426952149,1783051839000,-156.46,0.0002789,3]
[426952150,1783051839000,-469.39,0.0002789,3]
[426952152,1783051839000,-1461.10024082,0.000279,2]
[426952489,1783051847000,-393.12773328,0.00027768,2]
[426952490,1783051847000,-7461.66935305,0.000279,2]
[426952492,1783051847000,-36112.71496405,0.000279,2]
[426952491,1783051847000,-205.64738623,0.000279,2]
[426952493,1783052348000,283.0,0.00029041,120]
[426952495,1783052948000,-397.23756326,0.00025,2]
[426952496,1783052948000,-92.76243674,0.00025,2]
[426952562,1783053032000,-472.94222111,0.00025999,2]
[426952552,1783053032000,-222.14065266,0.00025999,2]
[426952535,1783053032000,-577.84633528,0.00025999,2]
[426952541,1783053032000,-577.84633528,0.00025999,2]
[426952576,1783053032000,-606.73865205,0.00025999,2]
[426952558,1783053032000,-357.32388583,0.00025999,2]
[426952543,1783053032000,-577.84633528,0.00025999,2]
[426952578,1783053032000,-606.73865205,0.00025999,2]
[426952556,1783053032000,-220.52244945,0.00025999,2]
[426952524,1783053032000,-151.0,0.0002425,2]
[426952539,1783053032000,-577.84633528,0.00025999,2]
[426952568,1783053032000,-577.84633528,0.00025999,2]
[426952566,1783053032000,-577.84633528,0.00025999,2]
[426952547,1783053032000,-577.84633528,0.00025999,2]
[426952549,1783053032000,-355.70568262,0.00025999,2]
[426952533,1783053032000,-577.84633528,0.00025999,2]
[426952526,1783053032000,-100.56338725,0.00025,2]
[426952554,1783053032000,-577.84633528,0.00025999,2]
[426952560,1783053032000,-104.90411417,0.00025999,2]
[426952570,1783053032000,-577.84633528,0.00025999,2]
[426952594,1783053032000,-574.37925729,0.00025999,2]
[426952531,1783053032000,-577.84633528,0.00025999,2]
[426952607,1783053032000,-2612.1141545,0.00026,2]
[426952545,1783053032000,-577.84633528,0.00025999,2]
[426952598,1783053032000,-574.37925729,0.00025999,2]
[426952596,1783053032000,-574.37925729,0.00025999,2]
[426952600,1783053032000,-1536.34701557,0.00026,2]
[426952602,1783053032000,-1491.19885398,0.00026,2]
[426952592,1783053032000,-606.73865205,0.00025999,2]
[426952590,1783053032000,-53.96386623,0.00025999,2]
[426952582,1783053032000,-606.73865205,0.00025999,2]
[426952605,1783053032000,-2946.77033069,0.00026,2]
[426952588,1783053032000,-552.77478582,0.00025999,2]
[426952584,1783053032000,-606.73865205,0.00025999,2]
[426952580,1783053032000,-606.73865205,0.00025999,2]
[426952574,1783053032000,-606.73865205,0.00025999,2]
[426952529,1783053032000,-177.37449332,0.0002525,2]
[426952572,1783053032000,-606.73865205,0.00025999,2]
[426952564,1783053032000,-577.84633528,0.00025999,2]
[426952586,1783053032000,-606.73865205,0.00025999,2]
[426952537,1783053032000,-577.84633528,0.00025999,2]
[426952754,1783053039000,-2246.40056582,0.00027401,2]
[426952753,1783053039000,-1439.13549762,0.00027401,2]
[426952750,1783053039000,-809.51371741,0.00027401,2]
[426952737,1783053039000,-159.228979,0.00026388,2]
[426952739,1783053039000,-169.90508,0.00026411,7]
[426952736,1783053039000,-731.308805,0.00026236,2]
[426952734,1783053039000,-396.15219277,0.00026136,2]
[426952741,1783053039000,-396.15219277,0.00026552,2]
[426952732,1783053039000,-7084.38887429,0.00026036,2]
[426952745,1783053039000,-396.15219277,0.00026968,2]
[426952729,1783053039000,-42236.59212076,0.00026,2]
[426952721,1783053039000,-374.09703255,0.00026,2]
[426952717,1783053039000,-400.70926091,0.00026,2]
[426952715,1783053039000,-605.21789017,0.00026,2]
[426952756,1783053039000,-364.42098587,0.00027401,2]
[426952747,1783053039000,-396.15219277,0.00027384,2]
[426952767,1783053039000,-500.0,0.00027549,2]
[426952743,1783053039000,-636.92050901,0.00026765,2]
[426952765,1783053039000,-168.63,0.00027518,2]
[426952769,1783053039000,-500.0,0.00027549,2]
[426952784,1783053039000,-500.0,0.00027599,2]
[426952781,1783053039000,-396.490063,0.0002755,7]
[426952782,1783053039000,-396.490063,0.0002755,7]
[426952786,1783053039000,-502.73236172,0.00027599,2]
[426952778,1783053039000,-396.490063,0.0002755,7]
[426952792,1783053039000,-605.175998,0.00027788,2]
[426952794,1783053039000,-1224.8083446,0.00027797,2]
[426952748,1783053039000,-449.72984301,0.00027401,2]
[426952790,1783053039000,-2313.891256,0.00027755,2]
[426952758,1783053039000,-655.95777456,0.00027401,2]
[426952762,1783053039000,-1822.10492934,0.00027401,2]
[426952772,1783053039000,-544.40422913,0.00027549,7]
[426952760,1783053039000,-1166.14715477,0.00027401,2]
[426952774,1783053039000,-36864.78685782,0.0002755,2]
[426952777,1783053039000,-396.490063,0.0002755,7]
[426952788,1783053039000,-174.97936134,0.000277,2]
[426952763,1783053039000,-2621.20726714,0.00027401,2]
[426953030,1783053041000,-66.21716179,0.00027797,2]
[426953741,1783053047000,-122.80214326,0.000278,2]
[426953739,1783053047000,-1886.35266774,0.00027797,2]
[426953765,1783053047000,-273.35004951,0.000278,2]
[426953767,1783053047000,-182.53,0.0002789,3]
[426953766,1783053047000,-365.06,0.0002789,3]
[426953770,1783053047000,-500.0,0.00027899,2]
[426953773,1783053047000,-500.0,0.00027899,2]
[426953775,1783053047000,-370.39782509,0.00027899,2]
[426953774,1783053047000,-500.0,0.00027899,2]
[426953771,1783053047000,-500.0,0.00027899,2]
[426953772,1783053047000,-500.0,0.00027899,2]
[426953769,1783053047000,-500.0,0.00027899,2]
[426953768,1783053047000,-547.61,0.0002789,3]
[426953826,1783053282000,-200.00346196,0.0002,2]
[426953827,1783053283000,-200.0,0.0002,2]
[426953828,1783053284000,-254.18621904,0.0002,2]
[426953829,1783053285000,-200.0,0.0002,2]
[426953830,1783053321000,-300.0,0.0002,2]
[426953831,1783053332000,-300.0,0.0002,2]
[426953832,1783053342000,-1000.0,0.0002,2]
[426953834,1783053657000,-147.810319,0.0002,2]
[426953835,1783053680000,-150.76831933,0.00021,2]
[426953836,1783053703000,-235.0,0.00022737,2]
[426953847,1783054124000,-8232.35929036,0.00021,2]
[426953848,1783054125000,-169.291983,0.00021,2]
[426953849,1783054127000,-686.56419584,0.00021,2]
[426953851,1783054157000,-198.71467655,0.00024908,2]
[426953853,1783054157000,-27.77288706,0.00024908,2]
[426953852,1783054157000,-227.10248749,0.00024908,2]
[426953850,1783054157000,-14460.38180083,0.00021,2]
[426953865,1783054233000,-500.0,0.00025999,2]
[426953868,1783054233000,-665.73741917,0.00026,30]
[426953862,1783054233000,-326.719902,0.00024908,2]
[426953864,1783054233000,-500.0,0.00025999,2]
[426953867,1783054233000,-500.01117286,0.00025999,2]
[426953866,1783054233000,-500.0,0.00025999,2]
[426953863,1783054233000,-160.53150597,0.00025935,2]
[426953902,1783054238000,-12318.77326647,0.00026,30]
[426954067,1783054353000,-13030.27515739,0.00026,30]
[426954068,1783054364000,-13030.27515739,0.00026,30]
[426954072,1783054679000,-177.50230439,0.0002,20]
[426954073,1783054689000,-177.50230439,0.0002,20]
[426954074,1783054700000,-556.94325568,0.0002,20]
[426954075,1783054711000,-556.94325568,0.0002,20]
[426954076,1783054722000,-172.608795,0.0002,20]
[426954077,1783054732000,-172.608795,0.0002,20]
[426954078,1783054743000,-646.89128986,0.0002,20]
[426954079,1783054766000,-170.774678,0.00021,2]
[426954080,1783054780000,-8.80691151,0.00021,2]
[426954081,1783054803000,-219.019956,0.0002146,2]
[426954083,1783054929000,-152.64435108,0.0002246,2]
[426954084,1783054946000,-2566.1893305,0.00024826,2]
[426954085,1783055133000,-2566.1893305,0.00024181,2]
[426954086,1783055156000,-2913.002259,0.00025627,2]
[426954087,1783055167000,-2488.9420365,0.00025627,2]
[426954088,1783055252000,-282.93009524,0.000258,2]
[426954090,1783055354000,-62.41939409,0.0002494,2]
[426954089,1783055354000,-394.44741713,0.0002494,2]
[426954093,1783055359000,-456.94957971,0.00025627,2]
[426954092,1783055359000,-703.66601735,0.0002494,2]
[426954091,1783055359000,-388.37765406,0.0002494,2]
[426954119,1783055431000,-870.24184,0.00025869,2]
[426954115,1783055431000,-156.0,0.00025527,2]
[426954117,1783055431000,-43.05042029,0.00025627,2]
[426954121,1783055431000,-175.507814,0.00025873,2]
[426954123,1783055431000,-211.53788501,0.00025899,2]
[426954159,1783055432000,-672.0,0.00027,2]
[426954165,1783055432000,-242.98235513,0.00027599,2]
[426954157,1783055432000,-1009.154811,0.000269,2]
[426954164,1783055432000,-150.0,0.00027592,2]
[426954151,1783055432000,-287.54939059,0.00026219,2]
[426954153,1783055432000,-328.29924709,0.00026219,2]
[426954145,1783055432000,-155.78586155,0.00026218,2]
[426954149,1783055432000,-1966.74563877,0.00026219,2]
[426954130,1783055432000,-536.17313333,0.00026,2]
[426954143,1783055432000,-500.0,0.00026218,2]
[426954140,1783055432000,-500.0,0.00026218,2]
[426954128,1783055432000,-71.72901173,0.00025932,2]
[426954136,1783055432000,-357.74797694,0.00026218,2]
[426954125,1783055432000,-428.27098827,0.00025932,2]
[426954161,1783055432000,-267.01039657,0.00027397,30]
[426954138,1783055432000,-500.0,0.00026218,2]
[426954141,1783055432000,-500.0,0.00026218,2]
[426954133,1783055432000,-500.0,0.00026218,2]
[426954147,1783055432000,-1259.977186,0.00026219,2]
[426954155,1783055432000,-160.0,0.00026718,3]
[426954172,1783055432000,-563.56950487,0.00027599,2]
[426954168,1783055432000,-297.24599369,0.00027599,2]
[426954181,1783055432000,-1000.0,0.00027899,2]
[426954182,1783055432000,-1000.0,0.00027899,2]
[426954184,1783055432000,-1000.0,0.00027899,2]
[426954186,1783055432000,-16016.27637425,0.000279,2]
[426954185,1783055432000,-1000.0,0.00027899,2]
[426954183,1783055432000,-1000.0,0.00027899,2]
[426954179,1783055432000,-455.74217491,0.00027899,2]
[426954180,1783055432000,-1000.0,0.00027899,2]
[426954174,1783055432000,-176.49312717,0.000277,2]
[426954178,1783055432000,-547.59,0.0002789,3]
[426954176,1783055432000,-500.0,0.00027889,2]
[426954173,1783055432000,-160.0,0.00027662,4]
[426954175,1783055432000,-395.31587339,0.0002778,2]
[426954167,1783055432000,-777.54353641,0.00027599,2]
[426954177,1783055432000,-182.53,0.0002789,3]
[426954171,1783055432000,-82.70085303,0.00027599,2]
[426954166,1783055432000,-437.36823923,0.00027599,2]
[426954169,1783055432000,-1213.69686387,0.00027599,2]
[426954170,1783055432000,-359.03908772,0.00027599,2]
[426954163,1783055432000,-1000.0,0.000274,2]
[426954132,1783055432000,-2376.82912567,0.00026,2]
[426954279,1783056009000,1167.8246,0.00028767,120]
[426954280,1783056241000,859.0,0.00029041,120]
[426954281,1783056348000,41248.74,0.00029041,120]
[426954329,1783056632000,-301.35729903,0.000277,2]
[426954314,1783056632000,-176.97276957,0.00024993,7]
[426954330,1783056632000,-107.07398883,0.000277,2]
[426954317,1783056632000,-195.88699583,0.00026269,7]
[426954318,1783056632000,-435.12092,0.00026431,2]
[426954319,1783056632000,-151.4358246,0.000267,2]
[426954321,1783056632000,-176.97276957,0.00026992,7]
[426954320,1783056632000,-348.62051412,0.000269,2]
[426954315,1783056632000,-176.97276957,0.00025493,7]
[426954327,1783056632000,-572.2545153,0.000277,2]
[426954324,1783056632000,-535.04278864,0.000277,2]
[426954325,1783056632000,-178.82953603,0.000277,2]
[426954328,1783056632000,-591.89623345,0.000277,2]
[426954316,1783056632000,-176.97276957,0.00026243,7]
[426954322,1783056632000,-1069.2455543,0.00027268,2]
[426954326,1783056632000,-321.89316486,0.000277,2]
[426954323,1783056632000,-1148.92508072,0.000277,2]
[426954387,1783056638000,-632.80699597,0.00027899,7]
[426954389,1783056638000,-135455.41764327,0.000279,2]
[426954385,1783056638000,-500.0,0.00027899,7]
[426954381,1783056638000,-188.34448224,0.00027897,2]
[426954378,1783056638000,-365.06,0.0002789,3]
[426954375,1783056638000,-1918.53185202,0.000278,2]
[426954362,1783056638000,-2081.97160599,0.000277,2]
[426954364,1783056638000,-2702.7139685,0.000278,2]
[426954367,1783056638000,-2420.02224527,0.000278,2]
[426954359,1783056638000,-498.83548863,0.000277,2]
[426954355,1783056638000,-1686.32625435,0.000277,2]
[426954357,1783056638000,-951.1871798,0.000277,2]
[426954383,1783056638000,-500.0,0.00027899,7]
[426954890,1783056646000,-3848.67571711,0.000279,2]
[426954891,1783057253000,177.0,0.00029041,120]
[426954892,1783057425000,1605.03695476,0.00022862,120]
[426954895,1783057643000,-157.11638068,0.00022862,2]
[426954896,1783057643000,-7.2849869,0.00023842,2]
[426954893,1783057643000,-171.0,0.00021781,2]
[426954894,1783057643000,-298.69713215,0.00022057,2]
[426954897,1783057727000,3792.04568229,0.000118,5]
[426954900,1783057752000,-24.71166907,0.00024495,2]
[426954899,1783057752000,-306.94777446,0.00023842,2]
[426954898,1783057752000,-230.22627271,0.000215,2]
[426954903,1783057761000,-588.535119,0.00024975,2]
[426954904,1783057761000,-494.82506926,0.00025469,3]
[426954902,1783057761000,-628.46552271,0.00024931,2]
[426954901,1783057761000,-446.63747296,0.00024495,2]
[426954929,1783057834000,-182.336608,0.00026322,2]
[426954926,1783057834000,-191.73912658,0.00025469,3]
[426954932,1783057834000,-157.28176268,0.00026323,2]
[426954934,1783057834000,-1334.04187006,0.00026408,2]
[426954930,1783057834000,-354.97529032,0.00026323,2]
[426955049,1783057838000,-150.70186841,0.00026408,2]
[426955056,1783057839000,-500.0,0.00027498,2]
[426955050,1783057839000,-6161.10955754,0.00027429,2]
[426955052,1783057839000,-500.0,0.00027498,2]
[426955051,1783057839000,-215.98282332,0.00027498,2]
[426955053,1783057839000,-500.0,0.00027498,2]
[426955054,1783057839000,-500.0,0.00027498,2]
[426955055,1783057839000,-500.0,0.00027498,2]
[426955058,1783057839000,-500.0,0.00027498,2]
[426955057,1783057839000,-500.0,0.00027498,2]
[426955059,1783057839000,-500.0,0.00027498,2]
[426955068,1783057839000,-500.0,0.00027498,2]
[426955061,1783057839000,-500.0,0.00027498,2]
[426955062,1783057839000,-500.0,0.00027498,2]
[426955063,1783057839000,-239.5317624,0.00027498,2]
[426955064,1783057839000,-500.0,0.00027498,2]
[426955066,1783057839000,-500.0,0.00027498,2]
[426955065,1783057839000,-500.0,0.00027498,2]
[426955071,1783057839000,-1719.29504224,0.000275,2]
[426955067,1783057839000,-500.0,0.00027498,2]
[426955069,1783057839000,-500.0,0.00027498,2]
[426955070,1783057839000,-23619.33549579,0.000275,2]
[426955060,1783057839000,-386.84196755,0.00027498,2]
[426955078,1783057841000,-1902.94802582,0.000275,2]
[426955102,1783058548000,-169.18729584,0.00023842,7]
[426955103,1783058564000,-261.86063446,0.00024495,2]
[426955104,1783058844000,-357.68758409,0.00024931,2]
[426955113,1783058957000,-168.41519626,0.00025034,7]
[426955112,1783058957000,-166.03368484,0.00024931,2]
[426955152,1783059032000,-99.93796068,0.00026599,7]
[426955154,1783059032000,-163.9,0.00027006,2]
[426955146,1783059032000,-154.64444363,0.00025034,7]
[426955150,1783059032000,-57.58703025,0.00026599,7]
[426955156,1783059032000,-160.0,0.00027347,3]
[426955148,1783059032000,-463.538534,0.0002589,2]
[426955167,1783059032000,-500.0,0.00027498,7]
[426955169,1783059032000,-243.36981727,0.00027499,2]
[426955159,1783059032000,-123.51807676,0.00027349,2]
[426955175,1783059032000,-20.78006473,0.00027499,2]
[426955173,1783059032000,-500.0,0.00027499,2]
[426955171,1783059032000,-500.0,0.00027499,2]
[426955165,1783059032000,-2768.46512164,0.00027349,2]
[426955353,1783059038000,-500.0,0.00027499,2]
[426955350,1783059038000,-479.21993527,0.00027499,2]
[426955355,1783059038000,-141.07303528,0.00027499,2]
[426955392,1783059039000,-208.54037373,0.00027499,2]
[426955391,1783059039000,-500.0,0.00027499,2]
[426955382,1783059039000,-500.0,0.00027499,2]
[426955384,1783059039000,-150.34732671,0.00027499,2]
[426955387,1783059039000,-349.65267329,0.00027499,2]
[426955389,1783059039000,-500.0,0.00027499,2]
[426955380,1783059039000,-11.41807801,0.00027499,2]
[426955805,1783059042000,-500.0,0.00027499,2]
[426955808,1783059042000,-446.83045734,0.00027499,2]
[426955802,1783059042000,-500.0,0.00027499,2]
[426955799,1783059042000,-291.45962627,0.00027499,2]
[426955871,1783059047000,-500.0,0.00027499,2]
[426955873,1783059047000,-500.0,0.00027499,2]
[426955874,1783059047000,-500.0,0.00027499,2]
[426955875,1783059047000,-500.0,0.00027499,2]
[426955870,1783059047000,-500.0,0.00027499,2]
[426955872,1783059047000,-500.0,0.00027499,2]
[426955877,1783059047000,-500.0,0.00027499,2]
[426955880,1783059047000,-450.0,0.00027499,2]
[426955879,1783059047000,-300.0,0.00027499,2]
[426955869,1783059047000,-53.16954266,0.00027499,2]
[426955876,1783059047000,-500.0,0.00027499,2]
[426955878,1783059047000,-500.0,0.00027499,2]
[426955881,1783059047000,-476.07571524,0.00027499,2]
[426955886,1783060040000,-501.0117451,0.00026,2]
[426955885,1783060040000,-211.06378271,0.00025927,2]
[426955887,1783060043000,-419.57156132,0.00026,2]
[426956044,1783060238000,-500.0,0.00027296,2]
[426956045,1783060238000,-531.68163397,0.00027296,2]
[426956035,1783060238000,-191.27436847,0.000272,2]
[426956025,1783060238000,-261.86063446,0.00026027,2]
[426956031,1783060238000,-500.0,0.00027198,2]
[426956028,1783060238000,-2883.78015,0.00026682,2]
[426956027,1783060238000,-231.769267,0.00026456,2]
[426956042,1783060238000,-500.0,0.00027296,2]
[426956029,1783060238000,-500.0,0.00027198,2]
[426956024,1783060238000,-2050.77548193,0.00026,2]
[426956023,1783060238000,-393.62785908,0.00025017,2]
[426956030,1783060238000,-500.0,0.00027198,2]
[426956032,1783060238000,-500.0,0.00027198,2]
[426956037,1783060238000,-500.0,0.00027296,2]
[426956026,1783060238000,-174.634065,0.00026327,2]
[426956046,1783060238000,-500.0,0.00027296,2]
[426956038,1783060238000,-285.76139679,0.00027296,2]
[426956053,1783060238000,-1700.62049343,0.000273,2]
[426956052,1783060238000,-3588.39068725,0.000273,2]
[426956050,1783060238000,-500.0,0.00027296,2]
[426956054,1783060238000,-5624.43606868,0.000273,2]
[426956051,1783060238000,-500.0,0.00027296,2]
[426956049,1783060238000,-500.0,0.00027296,2]
[426956047,1783060238000,-500.0,0.00027296,2]
[426956033,1783060238000,-442.80032477,0.00027198,2]
[426956041,1783060238000,-500.0,0.00027296,2]
[426956040,1783060238000,-500.0,0.00027296,2]
[426956048,1783060238000,-500.0,0.00027296,2]
[426956036,1783060238000,-184.73,0.00027289,2]
[426956034,1783060238000,-500.0,0.00027198,2]
[426956043,1783060238000,-500.0,0.00027296,2]
[426956039,1783060238000,-500.0,0.00027296,2]
[426956056,1783060240000,-934.908,0.000273,2]
[426956064,1783060243000,-839.9677105,0.000273,2]
[426956066,1783060246000,-3752.21266125,0.000273,2]
[426956067,1783060394000,2939.407403,0.00028648,120]
[426956075,1783061248000,-105.12543689,0.00024818,2]
[426956074,1783061248000,-286.27774168,0.00024818,2]
[426956073,1783061248000,-250.49302397,0.00024818,2]
[426956076,1783061304000,-200.00444663,0.00021,2]
[426956077,1783061322000,1621.7358514,0.000118,5]
[426956079,1783061325000,456.114941,0.00028458,120]
[426956080,1783061345000,-1912.68525894,0.00021,2]
[426956082,1783061351000,-333.21873279,0.000215,2]
[426956081,1783061351000,-1208.31254577,0.00021,2]
[426956262,1783061368000,-65.98089101,0.00025533,2]
[426956259,1783061368000,-164.40136758,0.00024931,2]
[426956261,1783061368000,-494.82506926,0.00025469,3]
[426956260,1783061368000,-3886.88801567,0.00025,2]
[426956258,1783061368000,-341.73622551,0.00024818,2]
[426956257,1783061368000,-97.00753992,0.000215,2]
[426956324,1783061431000,-206.66197737,0.00024818,2]
[426956326,1783061431000,-236.185117,0.00024818,2]
[426956328,1783061431000,-368.67020606,0.00024818,2]
[426956330,1783061431000,-53.53258497,0.00025533,2]
[426956416,1783061438000,-211.53788501,0.000259,2]
[426956470,1783061438000,-510.12588343,0.00026999,2]
[426956468,1783061438000,-1263.67,0.00026999,2]
[426956466,1783061438000,-1263.67,0.00026999,2]
[426956465,1783061438000,-1263.67,0.00026999,2]
[426956463,1783061438000,-504.11725018,0.00026999,2]
[426956461,1783061438000,-500.0,0.00026998,2]
[426956459,1783061438000,-500.0,0.00026998,2]
[426956457,1783061438000,-500.0,0.00026998,2]
[426956453,1783061438000,-500.0,0.00026998,2]
[426956451,1783061438000,-500.0,0.00026998,2]
[426956442,1783061438000,-500.0,0.00026998,2]
[426956440,1783061438000,-500.0,0.00026998,2]
[426956418,1783061438000,-359.63679836,0.00026,2]
[426956449,1783061438000,-500.0,0.00026998,2]
[426956439,1783061438000,-500.0,0.00026998,2]
[426956455,1783061438000,-500.0,0.00026998,2]
[426956431,1783061438000,-152.227273,0.00026998,2]
[426956433,1783061438000,-292.451691,0.00026998,2]
[426956426,1783061438000,-814.52218398,0.00026925,2]
[426956428,1783061438000,-151.0,0.00026998,2]
[426956429,1783061438000,-151.0,0.00026998,2]
[426956424,1783061438000,-411.077134,0.00026298,2]
[426956435,1783061438000,-500.0,0.00026998,2]
[426956420,1783061438000,-3644.9765362,0.00026002,2]
[426956414,1783061438000,-59.84355902,0.00025533,2]
[426956422,1783061438000,-160.3111472,0.00026123,2]
[426956472,1783061438000,-506.87424166,0.00026999,2]
[426956437,1783061438000,-500.0,0.00026998,2]
[426956483,1783061438000,-151.0,0.00027,2]
[426956474,1783061438000,-514.90615181,0.00026999,2]
[426956532,1783061438000,-1686.990199,0.00027127,2]
[426956525,1783061438000,-206.735714,0.00027025,2]
[426956523,1783061438000,-151.0,0.00027025,2]
[426956521,1783061438000,-154.36888639,0.00027025,2]
[426956519,1783061438000,-151.5,0.00027025,2]
[426956530,1783061438000,-1024.2929366,0.00027127,2]
[426956528,1783061438000,-151.0,0.00027026,2]
[426956527,1783061438000,-151.0,0.00027026,2]
[426956508,1783061438000,-500.0,0.00027023,2]
[426956517,1783061438000,-151.5,0.00027025,2]
[426956513,1783061438000,-500.0,0.00027023,2]
[426956515,1783061438000,-151.5,0.00027025,2]
[426956509,1783061438000,-500.0,0.00027023,2]
[426956476,1783061438000,-151.0,0.00026999,2]
[426956511,1783061438000,-500.0,0.00027023,2]
[426956496,1783061438000,-200.0,0.00027,7]
[426956502,1783061438000,-500.0,0.00027023,2]
[426956498,1783061438000,-500.0,0.00027023,2]
[426956485,1783061438000,-151.0,0.00027,2]
[426956506,1783061438000,-574.32523078,0.00027023,2]
[426956490,1783061438000,-200.0,0.00027,7]
[426956504,1783061438000,-500.0,0.00027023,2]
[426956489,1783061438000,-200.0,0.00027,7]
[426956494,1783061438000,-200.0,0.00027,7]
[426956492,1783061438000,-200.0,0.00027,7]
[426956487,1783061438000,-200.0,0.00027,7]
[426956478,1783061438000,-151.0,0.00026999,2]
[426956481,1783061438000,-60984.32917375,0.00027,2]
[426956500,1783061438000,-500.0,0.00027023,2]
[426956758,1783061439000,-120531.13942596,0.000279,2]
[426956756,1783061439000,-500.0,0.00027899,2]
[426956752,1783061439000,-500.0,0.00027899,2]
[426956599,1783061439000,-500.0,0.00027299,2]
[426956598,1783061439000,-151.0,0.00027299,2]
[426956592,1783061439000,-151.0,0.00027299,2]
[426956588,1783061439000,-151.0,0.00027298,2]
[426956601,1783061439000,-500.0,0.00027299,2]
[426956594,1783061439000,-151.0,0.00027299,2]
[426956590,1783061439000,-500.0,0.00027298,2]
[426956596,1783061439000,-151.0,0.00027299,2]
[426956603,1783061439000,-500.0,0.00027299,2]
[426956605,1783061439000,-151.0,0.00027299,2]
[426956609,1783061439000,-1642.866216,0.00027299,2]
[426956607,1783061439000,-151.0,0.00027299,2]
[426956587,1783061439000,-151.0,0.00027297,2]
[426956611,1783061439000,-1642.866216,0.00027299,2]
[426956613,1783061439000,-1642.866216,0.00027299,2]
[426956617,1783061439000,-1642.866216,0.00027299,2]
[426956619,1783061439000,-1642.866216,0.00027299,2]
[426956624,1783061439000,-1263.67,0.00027299,2]
[426956622,1783061439000,-1642.866214,0.00027299,2]
[426956620,1783061439000,-1642.866216,0.00027299,2]
[426956626,1783061439000,-300.0,0.00027299,2]
[426956637,1783061439000,-500.0,0.00027299,2]
[426956641,1783061439000,-151.0,0.000273,2]
[426956639,1783061439000,-500.0,0.00027299,2]